fUSD/lending_fUSD_20250308
["ID","MTS","AMOUNT","RATE_DAILY","PERIOD"]
[355684817,1741456249259,-500.0,9.485e-05,2]
[355684818,1741456249268,-500.0,9.485e-05,2]
[355684819,1741456249278,-500.0,9.485e-05,2]
[355684820,1741456249288,-500.0,9.485e-05,2]
[355684821,1741456249300,-500.0,9.485e-05,2]
[355684822,1741456249310,-515.69,9.485e-05,2]
[355684823,1741456249319,-500.0,9.485e-05,2]
[355684824,1741456249329,-608.77,9.485e-05,2]
[355684825,1741456249339,-500.0,9.485e-05,2]
[355684826,1741456249349,-610.49,9.485e-05,2]
[355684827,1741456249359,-790.66,9.485e-05,2]
[355684828,1741456249369,-500.0,9.485e-05,2]
[355684829,1741456249379,-500.0,9.485e-05,2]
[355684830,1741456249389,-500.0,9.485e-05,2]
[355684831,1741456249398,-500.0,9.485e-05,2]
[355684832,1741456249408,-500.0,9.485e-05,2]
[355684833,1741456249417,-500.0,9.485e-05,2]
[355684834,1741456249427,-588.37,9.485e-05,2]
[355684835,1741456249438,-500.0,9.485e-05,2]
[355684836,1741456249448,-500.0,9.485e-05,2]
[355684837,1741456249457,-500.0,9.485e-05,2]
[355684838,1741456249468,-500.0,9.485e-05,2]
[355684839,1741456249479,-708.38,9.485e-05,2]
[355684840,1741456249489,-500.0,9.485e-05,2]
[355684841,1741456249498,-500.0,9.485e-05,2]
[355684842,1741456249508,-951.61,9.485e-05,2]
[355684843,1741456249518,-500.0,9.485e-05,2]
[355684844,1741456249532,-500.0,9.485e-05,2]
[355684845,1741456249549,-500.0,9.485e-05,2]
[355684846,1741456249559,-500.0,9.485e-05,2]
[355684847,1741456249569,-500.0,9.485e-05,2]
[355684848,1741456249578,-500.0,9.485e-05,2]
[355684849,1741456249587,-537.15,9.485e-05,2]
[355684850,1741456249602,-500.0,9.485e-05,2]
[355684851,1741456249612,-679.36,9.485e-05,2]
[355684852,1741456249622,-500.0,9.485e-05,2]
[355684853,1741456249631,-500.0,9.485e-05,2]
[355684854,1741456249641,-500.0,9.485e-05,2]
[355684855,1741456249650,-500.0,9.485e-05,2]
[355684856,1741456249660,-500.0,9.485e-05,2]
[355684857,1741456249670,-500.0,9.485e-05,2]
[355684858,1741456249682,-162.25770135,9.496e-05,2]
[355684859,1741456249692,-16900.0,9.5e-05,3]
[355684860,1741456249702,-162.25770135,9.552e-05,2]
[355684861,1741456249712,-150.0,9.562e-05,7]
[355684862,1741456249721,-288.44715,9.584e-05,2]
[355684863,1741456249731,-503.40548968,9.584e-05,2]
[355684864,1741456249740,-512.16522572,9.584e-05,2]
[355684865,1741456249751,-500.0,9.584e-05,2]
[355684866,1741456249761,-208.096096,9.584e-05,2]
[355684867,1741456249770,-500.0,9.584e-05,2]
[355684868,1741456249780,-155.578648,9.584e-05,2]
[355684869,1741456249790,-500.0,9.584e-05,2]
[355684870,1741456249800,-618.67,9.584e-05,2]
[355684871,1741456249810,-500.0,9.584e-05,2]
[355684872,1741456249819,-500.0,9.584e-05,2]
[355684873,1741456249829,-500.0,9.584e-05,2]
[355684874,1741456249839,-500.0,9.584e-05,2]
[355684875,1741456249849,-500.0,9.584e-05,2]
[355684876,1741456249858,-500.0,9.584e-05,2]
[355684877,1741456249868,-500.0,9.584e-05,2]
[355684878,1741456249878,-500.0,9.584e-05,2]
[355684879,1741456249890,-524.41934499,9.584e-05,2]
[355684880,1741456249900,-500.0,9.584e-05,2]
[355684881,1741456249909,-500.0,9.584e-05,2]
[355684882,1741456249919,-422.65054197,9.584e-05,2]
[355684883,1741456249929,-500.0,9.584e-05,2]
[355684884,1741456249939,-500.0,9.584e-05,2]
[355684885,1741456249948,-505.21299778,9.584e-05,2]
[355684886,1741456249958,-500.0,9.584e-05,2]
[355684887,1741456249967,-500.0,9.584e-05,2]
[355684888,1741456249977,-500.0,9.584e-05,2]
[355684889,1741456249987,-500.0,9.584e-05,2]
[355684890,1741456249996,-500.0,9.584e-05,2]
[355684891,1741456250006,-500.0,9.584e-05,2]
[355684892,1741456250015,-500.0,9.584e-05,2]
[355684893,1741456250025,-500.0,9.584e-05,2]
[355684894,1741456250034,-500.0,9.584e-05,2]
[355684895,1741456250044,-500.0,9.584e-05,2]
[355684896,1741456250054,-500.0,9.584e-05,2]
[355684897,1741456250064,-500.0,9.584e-05,2]
[355684898,1741456250073,-500.0,9.584e-05,2]
[355684899,1741456250083,-505.9686089,9.584e-05,2]
[355684900,1741456250093,-500.0,9.584e-05,2]
[355684901,1741456250102,-500.0,9.584e-05,2]
[355684902,1741456250112,-528.78511299,9.584e-05,2]
[355684903,1741456250122,-521.42502759,9.584e-05,2]
[355684904,1741456250132,-500.0,9.584e-05,2]
[355684905,1741456250142,-500.0,9.584e-05,2]
[355684906,1741456250151,-500.0,9.584e-05,2]
[355684907,1741456250161,-500.0,9.584e-05,2]
[355684908,1741456250171,-500.0,9.584e-05,2]
[355684909,1741456250182,-185.98,9.584e-05,2]
[355684910,1741456250192,-500.0,9.584e-05,2]
[355684911,1741456250202,-500.0,9.584e-05,2]
[355684912,1741456250212,-500.0,9.584e-05,2]
[355684913,1741456250227,-500.0,9.584e-05,2]
[355684914,1741456250237,-504.36023459,9.584e-05,2]
[355684915,1741456250247,-500.0,9.584e-05,2]
[355684916,1741456250257,-505.61360362,9.584e-05,2]
[355684917,1741456250267,-285.18,9.584e-05,2]
[355684918,1741456250276,-500.0,9.584e-05,2]
[355684919,1741456250286,-500.0,9.584e-05,2]
[355684920,1741456250297,-500.0,9.584e-05,2]
[355684921,1741456250309,-500.0,9.584e-05,2]
[355684922,1741456250319,-500.0,9.584e-05,2]
[355684923,1741456250329,-584.12896914,9.584e-05,2]
[355684924,1741456250339,-500.0,9.584e-05,2]
[355684925,1741456250349,-500.0,9.584e-05,2]
[355684926,1741456250360,-500.0,9.584e-05,2]
[355684927,1741456250370,-371.6369068,9.584e-05,2]
[355684928,1741456250380,-1000.0,9.6e-05,2]
[355684929,1741456250390,-21100.0,9.6e-05,3]
[355684930,1741456250400,-162.25770135,9.608e-05,2]
[355684931,1741456250410,-162.25770135,9.664e-05,2]
[355684932,1741456250420,-1000.0,9.7e-05,2]
[355684933,1741456250430,-4200.0,9.7e-05,3]
[355684934,1741456250440,-162.25770135,9.72e-05,2]
[355684935,1741456250449,-3649.939,9.736e-05,2]
[355684936,1741456250459,-168.376,9.736e-05,2]
[355684937,1741456250469,-500.0,9.757e-05,2]
[355684938,1741456250479,-500.0,9.757e-05,2]
[355684939,1741456250490,-715.54,9.757e-05,2]
[355684940,1741456250500,-1374.21,9.757e-05,2]
[355684941,1741456250510,-1153.1,9.757e-05,2]
[355684942,1741456250520,-1163.89,9.757e-05,2]
[355684943,1741456250530,-744.97,9.757e-05,2]
[355684944,1741456250541,-2018.15,9.757e-05,2]
[355684945,1741456250552,-976.7,9.757e-05,2]
[355684946,1741456250562,-778.82,9.757e-05,2]
[355684947,1741456250572,-1880.67,9.757e-05,2]
[355684948,1741456250582,-573.35,9.757e-05,2]
[355684949,1741456250591,-814.94,9.757e-05,2]
[355684950,1741456250602,-500.0,9.757e-05,2]
[355684951,1741456250611,-595.93,9.757e-05,2]
[355684952,1741456250621,-500.0,9.757e-05,2]
[355684953,1741456250631,-500.0,9.757e-05,2]
[355684954,1741456250641,-500.0,9.757e-05,2]
[355684955,1741456250651,-1651.85,9.757e-05,2]
[355684956,1741456250660,-568.77,9.757e-05,2]
[355684957,1741456250670,-1101.03,9.757e-05,2]
[355684958,1741456250681,-1240.5,9.757e-05,2]
[355684959,1741456250691,-676.73,9.757e-05,2]
[355684960,1741456250701,-3157.35,9.757e-05,2]
[355684961,1741456250711,-778.0,9.757e-05,2]
[355684962,1741456250720,-1108.53,9.757e-05,2]
[355684963,1741456250730,-237.71977723,9.757e-05,2]
[355684964,1741456250740,-996.3,9.757e-05,2]
[355684965,1741456250750,-500.0,9.757e-05,2]
[355684966,1741456250760,-3678.94,9.757e-05,2]
[355684967,1741456250771,-1404.08,9.757e-05,2]
[355684968,1741456250781,-1438.38,9.757e-05,2]
[355684969,1741456250791,-1293.16,9.757e-05,2]
[355684970,1741456250801,-500.0,9.757e-05,2]
[355684971,1741456250811,-1116.67,9.757e-05,2]
[355684972,1741456250821,-6419.68,9.757e-05,2]
[355684973,1741456250831,-939.98,9.757e-05,2]
[355684974,1741456250841,-1617.07,9.757e-05,2]
[355684975,1741456250851,-500.0,9.757e-05,2]
[355684976,1741456250860,-1152.29,9.757e-05,2]
[355684977,1741456250871,-1407.05,9.757e-05,2]
[355684978,1741456250881,-688.97,9.757e-05,2]
[355684979,1741456250890,-635.04,9.757e-05,2]
[355684980,1741456250900,-1362.2,9.757e-05,2]
[355684981,1741456250910,-5910.88,9.757e-05,2]
[355684982,1741456250920,-500.0,9.757e-05,2]
[355684983,1741456250930,-1159.88,9.757e-05,2]
[355684984,1741456250940,-1586.58,9.757e-05,2]
[355684985,1741456250949,-764.31,9.757e-05,2]
[355684986,1741456250959,-1665.87,9.757e-05,2]
[355684987,1741456250968,-910.06,9.757e-05,2]
[355684988,1741456250978,-500.0,9.757e-05,2]
[355684989,1741456250988,-500.0,9.757e-05,2]
[355684990,1741456250998,-622.83,9.757e-05,2]
[355684991,1741456251008,-3038.92,9.757e-05,2]
[355684992,1741456251018,-1138.09,9.757e-05,2]
[355684993,1741456251027,-500.0,9.757e-05,2]
[355684994,1741456251037,-4745.04,9.757e-05,2]
[355684995,1741456251046,-1586.07,9.757e-05,2]
[355684996,1741456251058,-3340.42,9.757e-05,2]
[355684997,1741456251068,-730.45,9.757e-05,2]
[355684998,1741456251078,-500.0,9.757e-05,2]
[355684999,1741456251087,-605.1,9.757e-05,2]
[355685000,1741456251096,-1295.39,9.757e-05,2]
[355685001,1741456251106,-500.0,9.757e-05,2]
[355685002,1741456251116,-500.0,9.757e-05,2]
[355685003,1741456251126,-546.56,9.757e-05,2]
[355685004,1741456251138,-641.34792075,9.757e-05,2]
[355685005,1741456251148,-674.36,9.757e-05,2]
[355685006,1741456251158,-500.0,9.757e-05,2]
[355685007,1741456251167,-697.02,9.757e-05,2]
[355685008,1741456251177,-2755.86,9.757e-05,2]
[355685009,1741456251187,-578.24,9.757e-05,2]
[355685010,1741456251197,-500.0,9.758e-05,2]
[355685011,1741456251208,-500.0,9.758e-05,2]
[355685012,1741456251219,-500.0,9.758e-05,2]
[355685013,1741456251230,-426.64433562,9.758e-05,2]
[355685014,1741456251240,-500.0,9.758e-05,2]
[355685015,1741456251251,-500.0,9.758e-05,2]
[355685016,1741456251261,-500.0,9.758e-05,2]
[355685017,1741456251271,-500.0,9.758e-05,2]
[355685018,1741456251281,-456.38129593,9.758e-05,2]
[355685019,1741456251292,-500.0,9.758e-05,2]
[355685020,1741456251303,-500.0,9.758e-05,2]
[355685021,1741456251313,-500.0,9.758e-05,2]
[355685022,1741456251323,-500.0,9.758e-05,2]
[355685023,1741456251332,-500.0,9.758e-05,2]
[355685024,1741456251342,-500.0,9.758e-05,2]
[355685025,1741456251352,-500.0,9.758e-05,2]
[355685026,1741456251362,-500.0,9.758e-05,2]
[355685027,1741456251373,-500.0,9.758e-05,2]
[355685028,1741456251382,-500.0,9.758e-05,2]
[355685029,1741456251392,-500.0,9.758e-05,2]
[355685030,1741456251402,-500.0,9.758e-05,2]
[355685031,1741456251413,-528.21,9.758e-05,2]
[355685032,1741456251423,-512.78,9.758e-05,2]
[355685033,1741456251432,-500.0,9.758e-05,2]
[355685034,1741456251442,-500.0,9.758e-05,2]
[355685035,1741456251452,-688.72,9.758e-05,2]
[355685036,1741456251462,-633.54,9.758e-05,2]
[355685037,1741456251472,-516.06,9.758e-05,2]
[355685038,1741456251482,-529.82,9.758e-05,2]
[355685039,1741456251493,-500.0,9.758e-05,2]
[355685040,1741456251503,-506.35,9.758e-05,2]
[355685041,1741456251512,-500.0,9.758e-05,2]
[355685042,1741456251523,-500.0,9.758e-05,2]
[355685043,1741456251533,-501.84,9.758e-05,2]
[355685044,1741456251544,-600.41,9.758e-05,2]
[355685045,1741456251555,-500.0,9.758e-05,2]
[355685046,1741456251565,-551.83,9.758e-05,2]
[355685047,1741456251576,-500.0,9.758e-05,2]
[355685048,1741456251586,-500.0,9.758e-05,2]
[355685049,1741456251596,-500.0,9.758e-05,2]
[355685050,1741456251606,-663.32,9.758e-05,2]
[355685051,1741456251616,-1367.32,9.758e-05,2]
[355685052,1741456251625,-715.67,9.758e-05,2]
[355685053,1741456251635,-1067.71,9.758e-05,2]
[355685054,1741456251645,-500.0,9.758e-05,2]
[355685055,1741456251655,-2597.73,9.758e-05,2]
[355685056,1741456251665,-880.82,9.758e-05,2]
[355685057,1741456251675,-531.6,9.758e-05,2]
[355685058,1741456251685,-875.45,9.758e-05,2]
[355685059,1741456251695,-929.57,9.758e-05,2]
[355685060,1741456251704,-562.8,9.758e-05,2]
[355685061,1741456251714,-1463.68,9.758e-05,2]
[355685062,1741456251724,-609.08,9.758e-05,2]
[355685063,1741456251734,-606.87,9.758e-05,2]
[355685064,1741456251744,-500.0,9.758e-05,2]
[355685065,1741456251754,-3255.39,9.758e-05,2]
[355685066,1741456251764,-856.21,9.758e-05,2]
[355685067,1741456251774,-500.0,9.758e-05,2]
[355685068,1741456251784,-2399.28,9.758e-05,2]
[355685069,1741456251794,-500.0,9.758e-05,2]
[355685070,1741456251805,-500.0,9.758e-05,2]
[355685071,1741456251815,-704.9,9.758e-05,2]
[355685072,1741456251825,-702.97,9.758e-05,2]
[355685073,1741456251835,-1856.69,9.758e-05,2]
[355685074,1741456251845,-500.0,9.758e-05,2]
[355685075,1741456251855,-500.0,9.758e-05,2]
[355685076,1741456251865,-500.0,9.758e-05,2]
[355685077,1741456251875,-500.0,9.758e-05,2]
[355685078,1741456252077,-1464.44,9.758e-05,2]
[355685079,1741456252088,-921.95,9.758e-05,2]
[355685080,1741456252099,-500.0,9.758e-05,2]
[355685081,1741456252109,-738.38,9.758e-05,2]
[355685082,1741456252120,-500.0,9.758e-05,2]
[355685083,1741456252130,-987.9,9.758e-05,2]
[355685084,1741456252139,-500.0,9.758e-05,2]
[355685085,1741456252149,-1132.36,9.758e-05,2]
[355685086,1741456252159,-1049.23,9.758e-05,2]
[355685087,1741456252168,-500.0,9.758e-05,2]
[355685088,1741456252179,-2015.78,9.758e-05,2]
[355685089,1741456252188,-500.0,9.758e-05,2]
[355685090,1741456252198,-1402.29,9.758e-05,2]
[355685091,1741456252209,-500.0,9.758e-05,2]
[355685092,1741456252221,-1530.43,9.758e-05,2]
[355685093,1741456252231,-3538.21,9.758e-05,2]
[355685094,1741456252241,-233.88310313,9.758e-05,2]
[355685095,1741456252251,-3141.66,9.758e-05,2]
[355685096,1741456252261,-1808.5,9.758e-05,2]
[355685097,1741456252272,-247.44,9.758e-05,2]
[355685098,1741456252282,-2951.36,9.758e-05,2]
[355685099,1741456252292,-13800.49,9.758e-05,2]
[355685100,1741456252303,-500.0,9.758e-05,2]
[355685101,1741456252313,-1367.41,9.758e-05,2]
[355685102,1741456252323,-500.0,9.758e-05,2]
[355685103,1741456252334,-500.0,9.758e-05,2]
[355685104,1741456252344,-991.23,9.758e-05,2]
[355685105,1741456252354,-500.0,9.758e-05,2]
[355685106,1741456252364,-1840.5,9.758e-05,2]
[355685107,1741456252374,-500.0,9.758e-05,2]
[355685108,1741456252384,-9909.89,9.758e-05,2]
[355685109,1741456252394,-500.0,9.758e-05,2]
[355685110,1741456252403,-500.0,9.758e-05,2]
[355685111,1741456252414,-500.0,9.758e-05,2]
[355685112,1741456252424,-1130.76,9.758e-05,2]
[355685113,1741456252434,-500.0,9.758e-05,2]
[355685114,1741456252444,-500.0,9.758e-05,2]
[355685115,1741456252455,-500.0,9.758e-05,2]
[355685116,1741456252464,-902.26,9.758e-05,2]
[355685117,1741456252474,-1896.91,9.758e-05,2]
[355685118,1741456252484,-500.0,9.758e-05,2]
[355685119,1741456252494,-1000.0,9.758e-05,2]
[355685120,1741456252503,-500.0,9.759e-05,2]
[355685121,1741456252513,-500.0,9.759e-05,2]
[355685122,1741456252523,-500.0,9.759e-05,2]
[355685123,1741456252533,-500.0,9.759e-05,2]
[355685124,1741456252542,-500.0,9.759e-05,2]
[355685125,1741456252553,-500.0,9.759e-05,2]
[355685126,1741456252563,-500.0,9.759e-05,2]
[355685127,1741456252573,-500.0,9.759e-05,2]
[355685128,1741456252582,-500.0,9.759e-05,2]
[355685129,1741456252592,-515.69,9.759e-05,2]
[355685130,1741456252601,-500.0,9.759e-05,2]
[355685131,1741456252611,-608.77,9.759e-05,2]
[355685132,1741456252621,-500.0,9.759e-05,2]
[355685133,1741456252631,-790.66,9.759e-05,2]
[355685134,1741456252640,-500.0,9.759e-05,2]
[355685135,1741456252650,-500.0,9.759e-05,2]
[355685136,1741456252660,-500.0,9.759e-05,2]
[355685137,1741456252670,-500.0,9.759e-05,2]
[355685138,1741456252680,-500.0,9.759e-05,2]
[355685139,1741456252690,-500.0,9.759e-05,2]
[355685140,1741456252700,-588.37,9.759e-05,2]
[355685141,1741456252710,-500.0,9.759e-05,2]
[355685142,1741456252720,-500.0,9.759e-05,2]
[355685143,1741456252729,-500.0,9.759e-05,2]
[355685144,1741456252739,-500.0,9.759e-05,2]
[355685145,1741456252748,-708.38,9.759e-05,2]
[355685146,1741456252758,-500.0,9.759e-05,2]
[355685147,1741456252768,-500.0,9.759e-05,2]
[355685148,1741456252778,-951.61,9.759e-05,2]
[355685149,1741456252788,-500.0,9.759e-05,2]
[355685150,1741456252798,-500.0,9.759e-05,2]
[355685151,1741456252809,-500.0,9.759e-05,2]
[355685152,1741456252818,-171.67404171,9.759e-05,2]
[355685153,1741456252828,-500.0,9.759e-05,2]
[355685154,1741456252838,-500.0,9.759e-05,2]
[355685155,1741456252849,-537.15,9.759e-05,2]
[355685156,1741456252859,-500.0,9.759e-05,2]
[355685157,1741456252869,-679.36,9.759e-05,2]
[355685158,1741456252878,-500.0,9.759e-05,2]
[355685159,1741456252888,-500.0,9.759e-05,2]
[355685160,1741456252898,-285.27,9.759e-05,2]
[355685161,1741456252908,-500.0,9.759e-05,2]
[355685162,1741456252917,-500.0,9.759e-05,2]
[355685163,1741456252928,-500.0,9.759e-05,2]
[355685164,1741456252938,-162.25770135,9.776e-05,2]
[355685165,1741456252948,-1000.0,9.8e-05,2]
[355685166,1741456252958,-4200.0,9.8e-05,3]
[355685167,1741456252968,-10478.85853417,9.808e-05,2]
[355685168,1741456252978,-162.25770135,9.832e-05,2]
[355685169,1741456252987,-288.44715,9.858e-05,2]
[355685170,1741456252998,-208.096096,9.858e-05,2]
[355685171,1741456253007,-500.0,9.858e-05,2]
[355685172,1741456253017,-500.0,9.858e-05,2]
[355685173,1741456253027,-509.55,9.858e-05,2]
[355685174,1741456253036,-500.0,9.858e-05,2]
[355685175,1741456253046,-500.0,9.858e-05,2]
[355685176,1741456253058,-271.72863775,9.858e-05,2]
[355685177,1741456253068,-500.0,9.858e-05,2]
[355685178,1741456253078,-500.0,9.858e-05,2]
[355685179,1741456253088,-500.0,9.858e-05,2]
[355685180,1741456253097,-500.0,9.858e-05,2]
[355685181,1741456253107,-500.0,9.858e-05,2]
[355685182,1741456253117,-500.0,9.858e-05,2]
[355685183,1741456253127,-500.0,9.858e-05,2]
[355685184,1741456253136,-500.0,9.858e-05,2]
[355685185,1741456253146,-500.0,9.858e-05,2]
[355685186,1741456253156,-500.0,9.858e-05,2]
[355685187,1741456253166,-500.0,9.858e-05,2]
[355685188,1741456253176,-500.0,9.858e-05,2]
[355685189,1741456253186,-500.0,9.858e-05,2]
[355685190,1741456253195,-500.0,9.858e-05,2]
[355685191,1741456253205,-500.0,9.858e-05,2]
[355685192,1741456253216,-500.0,9.858e-05,2]
[355685193,1741456253226,-500.0,9.858e-05,2]
[355685194,1741456253246,-472.31,9.858e-05,2]
[355685195,1741456253255,-500.0,9.858e-05,2]
[355685196,1741456253266,-500.0,9.858e-05,2]
[355685197,1741456253275,-500.0,9.858e-05,2]
[355685198,1741456253284,-500.0,9.858e-05,2]
[355685199,1741456253296,-500.0,9.858e-05,2]
[355685200,1741456253309,-500.0,9.858e-05,2]
[355685201,1741456253320,-500.0,9.858e-05,2]
[355685202,1741456253329,-500.0,9.858e-05,2]
[355685203,1741456253339,-671.6888416,9.863e-05,2]
[355685204,1741456253349,-162.25770135,9.888e-05,2]
[355685205,1741456253358,-3086.0,9.9e-05,2]
[355685206,1741456253368,-1000.0,9.9e-05,2]
[355685207,1741456253378,-4200.0,9.9e-05,3]
[355685208,1741456253388,-162.25770135,9.944e-05,2]
[355685209,1741456253398,-80456.0,9.973e-05,2]
[355685210,1741456253408,-160.27739978,9.973e-05,2]
[355685211,1741456253417,-160.31218132,9.973e-05,2]
[355685212,1741456253427,-363.52560036,9.973e-05,2]
[355685213,1741456253437,-205.27214592,9.973e-05,2]
[355685214,1741456253447,-155.05600244,9.973e-05,2]
[355685215,1741456253457,-160.88220478,9.973e-05,2]
[355685216,1741456253466,-501.82070001,9.973e-05,2]
[355685217,1741456253476,-158.25192019,9.973e-05,2]
[355685218,1741456253485,-319.90399824,9.98e-05,2]
[355685219,1741456253495,-5800.0,9.985e-05,2]
[355685220,1741456253504,-12756.50908477,9.997e-05,2]
[355685221,1741456253514,-1268.3324861,9.997e-05,2]
[355685222,1741456253524,-1205.15026183,9.999e-05,3]
[355685223,1741456253534,-2085.12,9.999e-05,2]
[355685224,1741456253544,-1010908.74371995,9.999e-05,2]
[355685225,1741456253861,-980.276366,9.999e-05,2]
[355685226,1741456253873,-88681.7328,9.999e-05,2]
[355685227,1741456253895,-349.22659471,9.999e-05,2]
[355685228,1741456253913,-2104.79837284,9.999e-05,2]
[355685229,1741456253930,-79690.32977512,9.999e-05,2]
[355685230,1741456253942,-6464.33771379,9.999e-05,2]
[355685231,1741456256422,-233.0,9.38e-05,2]
[355685232,1741456256433,-61790.96870435,9.999e-05,2]
[355685233,1741456256482,-694.16999999,9.999e-05,2]
[355685234,1741456256494,-4152.43993286,9.999e-05,2]
[355685235,1741456257015,-500.5333534,9.973e-05,2]
[355685236,1741456257025,-92980.85557191,9.999e-05,2]
[355685237,1741456257123,-83879.34437139,9.999e-05,2]
[355685238,1741456257135,-1020.74793352,9.999e-05,2]
[355685239,1741456257147,-4667.49580378,9.999e-05,2]
[355685240,1741456257168,-150.934,9.38e-05,2]
[355685241,1741456257178,-739.136,9.999e-05,2]
[355685252,1741456546326,-679.11,8.935e-05,2]
[355685253,1741456546349,-500.0,8.935e-05,2]
[355685254,1741456546371,-500.0,8.935e-05,2]
[355685255,1741456546394,-500.0,8.935e-05,2]
[355685256,1741456546416,-500.0,8.935e-05,2]
[355685257,1741456546439,-1376.54,8.935e-05,2]
[355685258,1741456546462,-500.0,8.935e-05,2]
[355685259,1741456546483,-1033.75,8.935e-05,2]
[355685260,1741456546505,-500.0,8.935e-05,2]
[355685261,1741456546528,-2631.12,8.935e-05,2]
[355685262,1741456546551,-500.0,8.935e-05,2]
[355685263,1741456546573,-3065.78,8.935e-05,2]
[355685264,1741456546596,-500.0,8.935e-05,2]
[355685265,1741456546618,-500.0,8.935e-05,2]
[355685266,1741456546641,-1077.64,8.935e-05,2]
[355685267,1741456546664,-500.0,8.935e-05,2]
[355685268,1741456546685,-500.0,8.935e-05,2]
[355685269,1741456546707,-5349.73,8.935e-05,2]
[355685270,1741456546728,-359.75263632,8.935e-05,2]
[355685271,1741456546751,-305.04959826,8.935e-05,2]
[355685272,1741456546774,-379.083601,8.935e-05,2]
[355685273,1741456546798,-615.32,8.935e-05,2]
[355685274,1741456546823,-500.0,8.935e-05,2]
[355685275,1741456546845,-648.33,8.935e-05,2]
[355685276,1741456546867,-500.0,8.935e-05,2]
[355685277,1741456546889,-1170.06,8.935e-05,2]
[355685278,1741456546912,-500.0,8.935e-05,2]
[355685279,1741456546935,-830.25,8.935e-05,2]
[355685280,1741456546957,-500.0,8.935e-05,2]
[355685281,1741456546978,-500.0,8.935e-05,2]
[355685282,1741456547000,-500.0,8.935e-05,2]
[355685283,1741456547022,-966.56,8.935e-05,2]
[355685284,1741456547043,-1168.58,8.935e-05,2]
[355685285,1741456547066,-500.0,8.935e-05,2]
[355685286,1741456547089,-563.94,8.935e-05,2]
[355685287,1741456547114,-500.0,8.935e-05,2]
[355685288,1741456547136,-500.0,8.935e-05,2]
[355685289,1741456547157,-930.55,8.935e-05,2]
[355685290,1741456547179,-1275.36,8.935e-05,2]
[355685291,1741456547200,-500.0,8.935e-05,2]
[355685292,1741456547222,-1388.23,8.935e-05,2]
[355685293,1741456547243,-783.32,8.935e-05,2]
[355685294,1741456547266,-923.78,8.935e-05,2]
[355685295,1741456547287,-500.0,8.935e-05,2]
[355685296,1741456547312,-500.0,8.935e-05,2]
[355685297,1741456547334,-2618.05,8.935e-05,2]
[355685298,1741456547357,-1172.54,8.935e-05,2]
[355685299,1741456547379,-521.62,8.935e-05,2]
[355685300,1741456547401,-500.0,8.935e-05,2]
[355685301,1741456547424,-2459.46,8.935e-05,2]
[355685302,1741456547445,-1198.65,8.935e-05,2]
[355685303,1741456547467,-2922.86,8.935e-05,2]
[355685304,1741456547489,-500.0,8.935e-05,2]
[355685305,1741456547511,-500.0,8.935e-05,2]
[355685306,1741456547532,-500.0,8.935e-05,2]
[355685307,1741456547555,-11555.7,8.935e-05,2]
[355685308,1741456547576,-500.0,8.935e-05,2]
[355685309,1741456547598,-500.0,8.935e-05,2]
[355685310,1741456547620,-1322.15,8.935e-05,2]
[355685311,1741456547641,-1135.16,8.935e-05,2]
[355685312,1741456547662,-527.95,8.935e-05,2]
[355685313,1741456547683,-911.6,8.935e-05,2]
[355685314,1741456547705,-500.0,8.935e-05,2]
[355685315,1741456547727,-1368.4,8.935e-05,2]
[355685316,1741456547748,-573.94,8.935e-05,2]
[355685317,1741456547769,-2296.55,8.935e-05,2]
[355685318,1741456547790,-532.81132282,8.935e-05,2]
[355685319,1741456547812,-519.03,8.935e-05,2]
[355685320,1741456547833,-960.24,8.935e-05,2]
[355685321,1741456547855,-500.0,8.935e-05,2]
[355685322,1741456547876,-826.02,8.935e-05,2]
[355685323,1741456547898,-1139.43,8.935e-05,2]
[355685324,1741456547921,-574.14,8.935e-05,2]
[355685325,1741456547943,-2532.44,8.935e-05,2]
[355685326,1741456547965,-639.15,8.935e-05,2]